bitfinex-derivatives/quotes_ETHF0:USTF0_20260203
["timestamp","ask_amount","ask_price","bid_price","bid_amount"]
[1770115954783,6.20130584,2280.0,2279.5,40.8]
[1770115955081,2.42491948,2280.0,2279.5,40.8]
[1770115955282,2.42491948,2280.0,2279.4,2.4179445]
[1770115955781,2.42491948,2280.0,2279.4,43.2179445]
[1770115956277,2.42491948,2280.0,2279.4,40.80345485]
[1770115956476,2.42491948,2279.8,2279.4,0.00345485]
[1770115958080,2.42491948,2280.0,2279.4,0.00345485]
[1770115958384,9.75517517,2280.3,2279.4,2.4179445]
[1770115958584,3.76956172,2280.2,2279.4,2.4179445]
[1770115958880,12.18009465,2280.3,2279.4,2.4179445]
[1770115959085,6.19454702,2280.2,2279.4,2.4179445]
[1770115959288,2.42491948,2280.2,2279.4,2.4179445]
[1770115959785,9.75517517,2280.3,2279.4,2.4179445]
[1770115959786,0.00329698,2280.3,2279.5,2.41448965]
[1770115960177,2.42491948,2280.1,2279.4,2.6374845]
[1770115963091,4.99209465,2280.3,2279.4,2.6374845]
[1770115963389,6.19777716,2280.2,2279.4,2.6374845]
[1770115963588,2.42491948,2280.2,2279.4,2.6374845]
[1770115965893,2.56717517,2280.3,2279.4,2.6374845]
[1770115966089,0.00329698,2280.3,2279.4,2.6374845]
[1770115966388,2.42821646,2280.3,2279.4,2.6374845]
[1770115967286,2.42491948,2280.1,2279.4,2.4179445]
[1770115970296,2.42491948,2280.1,2279.4,0.00345485]
[1770115970889,2.52981324,2279.9,2279.4,0.00345485]
[1770115974199,2.54188874,2280.2,2279.4,2.45228121]
[1770115974392,2.54188874,2280.2,2279.6,2.44882636]
[1770115974591,2.54188874,2280.2,2279.5,40.8]
[1770115974796,2.54188874,2280.0,2279.5,40.8]
[1770115975198,2.54188874,2280.0,2279.4,2.45228121]
[1770115975399,2.54188874,2280.0,2279.4,0.00345485]
[1770115975700,2.54188874,2279.8,2279.4,0.00345485]
[1770115977594,2.54188874,2279.8,2279.1,40.8]
[1770115978702,2.54188874,2279.8,2279.1,40.80563309]
[1770115979402,2.54188874,2279.8,2279.1,0.00563309]
[1770115979602,2.54188874,2279.6,2279.1,0.00563309]
[1770115981703,5.10576693,2279.8,2279.1,2.45445945]
[1770115981901,3.77304653,2279.7,2279.1,2.45445945]
[1770115982103,2.54188874,2279.8,2279.1,2.45445945]
[1770115982399,2.54188874,2280.0,2279.3,2.44882636]
[1770115982604,5.10576693,2280.2,2279.5,2.44882636]
[1770115982902,3.77288484,2280.1,2279.5,2.44882636]
[1770115983103,2.54188874,2280.2,2279.5,2.44882636]
[1770115983400,3.77329468,2280.1,2279.5,2.44882636]
[1770115983605,2.54188874,2280.2,2279.5,2.44882636]
[1770115983904,3.77332055,2280.1,2279.5,2.44882636]
[1770115984199,0.00329698,2280.3,2279.7,2.44882636]
[1770115985305,2.54518572,2280.3,2279.4,0.21954]
[1770115985600,2.54188874,2280.1,2279.2,2.44882636]
[1770115985802,2.56387819,2280.2,2279.2,2.44882636]
[1770115986104,2.54518572,2280.3,2279.4,2.44882636]
[1770115986405,2.54188874,2280.1,2279.4,2.44882636]
[1770115989805,5.10906391,2280.3,2279.4,2.44882636]
[1770115990007,2.54188874,2280.1,2279.1,0.00563309]
[1770115990204,2.54188874,2279.9,2279.1,0.00563309]
[1770115990407,3.7737552,2279.8,2279.1,2.45445945]
[1770115990608,2.54188874,2279.9,2279.1,2.45445945]
[1770115990807,3.78820514,2279.8,2279.1,2.45445945]
[1770115991005,2.54188874,2279.9,2279.1,2.45445945]
[1770115991306,3.78969993,2279.8,2279.1,2.45445945]
[1770115991505,2.54188874,2279.9,2279.1,2.45445945]
[1770115991709,2.54188874,2279.7,2279.1,2.45445945]
[1770115993510,2.54188874,2279.7,2279.1,0.00563309]
[1770115996511,2.54188874,2279.5,2279.1,0.00563309]
[1770115997207,2.54188874,2279.5,2278.6,43.24882636]
[1770115997707,2.54188874,2279.5,2278.7,2.44882636]
[1770115998113,2.54188874,2279.5,2278.7,2.45307242]
[1770116001416,2.54188874,2279.5,2278.7,0.00424606]
[1770116001910,5.1044079,2279.7,2278.7,2.37435044]
[1770116002113,3.78812264,2279.6,2278.8,2.37010438]
[1770116002314,3.78812264,2279.5,2278.9,2.37010438]
[1770116002618,2.54052971,2279.6,2278.9,2.37010438]
[1770116002918,2.54052971,2279.4,2278.7,8.44935044]
[1770116003315,2.54052971,2279.4,2278.8,2.37010438]
[1770116003815,2.56387819,2279.7,2278.8,2.37010438]
[1770116004016,2.54052971,2280.1,2279.0,2.37010438]
[1770116004216,0.00329698,2280.3,2279.5,2.37010438]
[1770116004514,5.1044079,2280.1,2278.9,2.37010438]
[1770116004716,2.54052971,2279.9,2278.9,2.37010438]
[1770116005221,2.54052971,2279.7,2278.9,2.37010438]
[1770116005813,2.54052971,2279.9,2278.9,2.37010438]
[1770116006314,6.33121765,2279.8,2278.9,2.37010438]
[1770116006518,2.54052971,2279.8,2279.0,2.37010438]
[1770116010621,2.54052971,2280.0,2279.2,2.37010438]
[1770116010921,6.33145371,2279.9,2279.2,2.37010438]
[1770116011123,2.54052971,2279.9,2279.2,2.37010438]
[1770116011421,12.3564079,2280.1,2279.3,1.36959297]
[1770116011617,2.54052971,2280.1,2279.4,2.37010438]
[1770116011822,2.54052971,2280.1,2279.2,2.58965438]
[1770116012018,2.54052971,2280.0,2279.0,2.37010438]
[1770116012218,2.54052971,2279.8,2279.0,2.37010438]
[1770116013720,2.54052971,2279.8,2278.8,10.06028735]
[1770116013916,2.54052971,2279.8,2278.8,8.69069438]
[1770116014120,1.36959297,2279.7,2278.7,40.80424606]
[1770116014323,2.54052971,2279.5,2278.7,0.00424606]
[1770116015219,2.54052971,2279.5,2278.7,2.37435044]
[1770116018521,2.54052971,2279.5,2278.7,0.00424606]
[1770116018922,2.54052971,2279.5,2278.7,2.37435044]
[1770116021527,2.54052971,2279.3,2278.7,2.37435044]
[1770116021727,2.54052971,2279.3,2278.7,0.00424606]
[1770116023931,3.91012268,2279.3,2278.7,0.00424606]
[1770116024230,2.54052971,2279.2,2278.7,0.00424606]
[1770116025031,2.54052971,2279.2,2278.4,0.21963]
[1770116025229,2.54052971,2279.2,2278.4,2.58973438]
[1770116025626,2.54052971,2279.2,2278.4,0.21963]
[1770116026032,2.54052971,2279.2,2278.4,0.22284455]
[1770116028232,2.54052971,2279.0,2278.4,0.00321455]
[1770116028432,2.54052971,2278.8,2278.4,0.00321455]
[1770116028633,2.54052971,2278.8,2278.0,8.57910438]
[1770116028927,2.54052971,2278.8,2278.0,49.37910438]
[1770116029728,2.54052971,2278.4,2278.0,0.00347539]
[1770116029928,2.54516483,2278.4,2277.7,2.37010438]
[1770116030135,0.00463512,2278.4,2277.9,2.37010438]
[1770116031129,0.00463512,2278.4,2277.9,2.375482]
[1770116031630,6.419,2279.2,2277.9,2.375482]
[1770116031631,2.56387819,2279.2,2277.9,2.375482]
[1770116031934,2.35043394,2279.3,2278.3,0.21964]
[1770116032234,2.35043394,2279.3,2278.4,6.246]
[1770116032632,2.35481999,2279.3,2278.4,6.246]
[1770116033134,2.35481999,2279.3,2278.1,2.33885786]
[1770116033334,3.7850654,2279.2,2278.1,4.91985786]
[1770116033534,2.52074201,2279.1,2278.1,4.91985786]
[1770116033733,3.78478026,2279.0,2277.9,0.00537762]
[1770116033936,2.52074201,2278.9,2277.9,0.00537762]
[1770116034231,2.52074201,2278.9,2277.9,2.34423548]
[1770116035536,2.52074201,2278.9,2277.9,0.00537762]
[1770116036637,2.52074201,2278.9,2277.9,2.34423548]
[1770116039841,2.52074201,2278.9,2277.9,2.56391548]
[1770116041041,5.32974201,2279.1,2278.1,2.33885786]
[1770116041542,5.64126424,2279.3,2278.0,0.21967]
[1770116041543,5.59812806,2279.3,2278.4,2.55848786]
[1770116042037,5.59812806,2279.3,2278.5,0.21962]
[1770116042243,5.59812806,2279.3,2278.6,2.33885786]
[1770116042541,2.52074201,2279.2,2278.5,0.21962]
[1770116042737,2.52074201,2279.2,2278.2,2.33885786]
[1770116042937,2.52074201,2279.0,2277.9,0.00537762]
[1770116043138,2.52074201,2278.8,2277.9,0.00537762]
[1770116045237,2.52074201,2278.8,2277.9,2.34423548]
[1770116045542,2.52074201,2279.0,2278.1,2.33885786]
[1770116046443,2.52074201,2279.0,2278.1,2.55851786]
[1770116046839,2.52074201,2279.2,2278.3,2.33885786]
[1770116047044,3.07738605,2279.3,2278.2,6.46965]
[1770116047045,0.00438605,2279.3,2278.5,2.33885786]
[1770116047338,2.52512806,2279.3,2278.5,2.33885786]
[1770116048045,2.52074201,2279.6,2278.5,2.55847786]
[1770116049049,2.52455749,2279.6,2278.5,2.55847786]
[1770116049244,3.78722889,2279.5,2278.3,2.33885786]
[1770116049450,2.52074201,2279.3,2278.1,2.33885786]
[1770116049652,2.52074201,2279.1,2278.1,2.33885786]
[1770116050247,2.78341819,2279.4,2278.3,2.33885786]
[1770116050248,2.52074201,2279.3,2278.3,2.33885786]
[1770116050443,2.52074201,2279.1,2278.3,2.33885786]
[1770116052151,5.0846202,2279.4,2278.3,2.33885786]
[1770116052347,2.52074201,2279.4,2278.5,2.33885786]
[1770116052652,2.52074201,2279.4,2278.5,2.55847786]
[1770116053352,0.00381548,2279.6,2278.9,2.55843786]
[1770116053949,0.00381548,2279.6,2279.1,2.33885786]
[1770116054554,2.52074201,2279.9,2279.1,2.33885786]
[1770116055550,2.52411659,2279.9,2279.1,2.33885786]
[1770116058553,2.52411659,2279.9,2279.0,40.8]
[1770116058754,2.52411659,2279.9,2278.9,6.28]
[1770116059260,2.52411659,2279.9,2278.9,40.8]
[1770116059558,2.52411659,2279.9,2278.8,5.92585786]
[1770116059962,2.52411659,2279.9,2278.9,2.55844786]
[1770116063259,2.52411659,2279.9,2279.1,2.73580397]
[1770116065265,0.00337458,2279.9,2279.1,2.73580397]
[1770116065466,2.45809887,2279.8,2279.1,0.21957]
[1770116065966,0.00337458,2279.9,2279.1,2.73580397]
[1770116066969,2.46147345,2279.9,2279.1,2.73580397]
[1770116071168,2.56387819,2280.3,2279.2,5.81199507]
[1770116071373,2.45809887,2280.5,2279.7,2.51623397]
[1770116071873,2.45809887,2280.5,2279.8,2.73573397]
[1770116072173,2.46178131,2280.5,2279.8,2.74065954]
[1770116072964,2.46178131,2280.5,2279.8,0.00492557]
[1770116073170,2.46178131,2280.5,2279.5,0.21952]
[1770116074176,2.45809887,2280.3,2279.5,0.22344544]
[1770116075877,2.45809887,2280.3,2279.5,2.73967941]
[1770116076078,2.46178131,2280.5,2279.7,2.51623397]
[1770116076271,2.46178131,2280.5,2279.8,2.51623397]
[1770116077272,2.46178131,2280.5,2279.9,0.21949]
[1770116078181,2.46178131,2280.5,2279.5,0.00392544]
[1770116078778,2.46178131,2280.5,2279.5,2.73968941]
[1770116079179,2.46178131,2280.5,2279.5,0.22345544]
[1770116080580,2.46178131,2280.5,2279.5,2.73968941]
[1770116082788,2.46178131,2280.5,2279.5,0.22345544]
[1770116084084,3.77735698,2280.4,2279.5,0.22345544]
[1770116084382,2.45809887,2280.3,2279.5,0.22345544]
[1770116084785,2.45809887,2280.3,2279.5,2.73968941]
[1770116085485,2.45809887,2280.3,2279.6,0.21952]
[1770116087988,2.46178131,2280.5,2279.7,2.73574397]
[1770116088490,2.46178131,2280.5,2279.8,0.21949]
[1770116088688,2.45809887,2281.0,2280.4,0.21943]
[1770116088989,2.45809887,2281.2,2280.4,2.73566397]
[1770116089190,2.45809887,2281.2,2280.5,40.8]
[1770116089792,2.46220709,2281.2,2280.5,40.8]
[1770116090290,2.46220709,2281.2,2280.5,43.5459763]
[1770116090587,0.00410822,2281.2,2280.6,2.5265463]
[1770116091084,2.45597415,2281.2,2280.6,2.5265463]
[1770116092192,2.45597415,2281.2,2280.5,41.01943]
[1770116092389,0.00410822,2281.2,2280.7,2.59048937]
[1770116092590,2.3779732,2281.8,2280.7,2.59048937]
[1770116093592,2.38243488,2281.8,2280.7,2.59048937]
[1770116093791,2.38243488,2281.8,2280.9,2.37107937]
[1770116094697,2.38243488,2281.8,2280.9,2.59046937]
[1770116094894,2.38243488,2281.8,2281.1,2.37107937]
[1770116095195,2.38243488,2281.8,2281.1,2.59524511]
[1770116095594,2.3779732,2282.0,2281.1,2.59524511]
[1770116096595,2.38291055,2282.0,2281.1,2.59524511]
[1770116097296,2.38291055,2282.0,2281.1,0.22416574]
[1770116098300,2.3779732,2281.7,2280.6,0.21942]
[1770116099303,2.3779732,2281.7,2280.6,0.22329084]
[1770116100203,2.3779732,2281.7,2280.6,2.59437021]
[1770116101801,2.3779732,2281.7,2280.6,0.22329084]
[1770116104604,2.3779732,2281.5,2280.6,0.00387084]
[1770116104805,2.3779732,2281.5,2280.3,0.21945]
[1770116105405,2.3779732,2281.5,2280.5,2.59050937]
[1770116105906,2.3779732,2281.5,2280.5,2.59535063]
[1770116106204,2.3779732,2281.7,2281.1,2.37107937]
[1770116106410,2.38291055,2282.0,2281.1,2.37107937]
[1770116107202,2.38291055,2282.0,2281.3,2.59042937]
[1770116107508,2.38291055,2282.0,2281.3,0.21935]
[1770116108010,2.38291055,2282.0,2280.9,2.37107937]
[1770116108210,2.38291055,2282.0,2280.8,2.59047937]
[1770116108411,2.38291055,2282.0,2280.8,0.2194]
[1770116108710,2.38291055,2282.0,2280.8,2.59047937]
[1770116108907,2.38291055,2282.0,2280.8,0.2194]
[1770116109107,6.13909602,2281.9,2280.5,0.00484126]
[1770116109307,2.3779732,2281.7,2280.5,2.37592063]
[1770116109513,2.3779732,2281.7,2280.5,2.59535063]
[1770116111209,2.3779732,2281.7,2280.6,0.21942]
[1770116111410,2.3779732,2281.9,2280.8,2.59047937]
[1770116111612,2.3779732,2281.9,2281.0,2.37107937]
[1770116112008,2.3779732,2281.9,2281.2,2.37107937]
[1770116114617,2.3779732,2281.9,2281.1,0.21937]
[1770116114912,2.3779732,2281.9,2280.7,0.21941]
[1770116115216,2.3779732,2281.7,2280.7,0.21941]
[1770116115817,2.3779732,2281.5,2280.4,2.37107937]
[1770116117112,2.3779732,2281.3,2280.4,2.37107937]
[1770116117317,2.3779732,2281.3,2280.4,2.59051937]
[1770116117819,2.3779732,2281.3,2280.5,2.37592063]
[1770116118018,4.95368829,2281.8,2281.0,2.37107937]
[1770116118218,2.3779732,2281.8,2280.9,0.21939]
[1770116118621,2.3779732,2281.6,2280.9,0.21939]
[1770116119322,2.3779732,2281.4,2280.9,0.21939]
[1770116120514,2.3779732,2281.4,2280.5,0.00484126]
[1770116122216,2.55286207,2281.2,2280.5,0.00484126]
[1770116126022,2.55286207,2281.5,2280.6,2.56755116]
[1770116126222,6.32130507,2281.4,2280.6,2.56755116]
[1770116126419,2.55286207,2281.4,2280.6,2.56755116]
[1770116130624,2.55286207,2281.4,2280.6,0.21942]
[1770116133126,2.55286207,2281.4,2280.7,0.21941]
[1770116133325,9.76971509,2281.6,2280.5,0.00484126]
[1770116133326,9.74686207,2281.6,2280.8,2.56753116]
[1770116133520,3.77067606,2281.5,2280.8,2.56753116]
[1770116133725,2.55286207,2281.6,2280.8,2.34813116]
[1770116134019,2.55286207,2281.6,2281.0,2.56751116]
[1770116134225,2.55286207,2281.9,2281.0,2.56751116]
[1770116134425,6.3236699,2281.8,2281.0,2.56751116]
[1770116134626,2.55286207,2281.8,2281.0,2.56751116]
[1770116137534,5.13351451,2282.0,2281.2,2.34813116]
[1770116137735,6.32209964,2281.9,2281.2,2.34813116]
[1770116137934,3.76923757,2281.8,2281.2,2.34813116]
[1770116138135,2.55286207,2281.9,2281.1,0.21937]
[1770116138331,6.32212203,2281.8,2281.1,0.21937]
[1770116138536,2.55286207,2281.8,2281.1,0.21937]
[1770116143337,2.55286207,2281.8,2280.7,7.76934892]
[1770116144529,2.55286207,2281.6,2280.7,2.56754116]
[1770116145241,2.55286207,2281.6,2280.8,2.56753116]
[1770116146139,2.55286207,2281.6,2280.8,0.2194]
[1770116146932,2.55286207,2281.4,2280.8,0.2194]
[1770116147335,2.55286207,2281.4,2280.5,0.00484126]
[1770116149543,2.55286207,2281.2,2280.5,0.00484126]
[1770116155045,2.55286207,2281.2,2280.5,2.59605314]
[1770116158249,2.55286207,2281.2,2280.5,0.22427126]
[1770116158452,2.55286207,2281.2,2280.5,2.59605314]
[1770116161850,2.45560989,2281.6,2281.0,0.21938]
[1770116162056,2.45560989,2281.8,2281.2,2.59114188]
[1770116162444,7.221,2282.4,2281.6,0.21932]
[1770116162645,3.76717588,2282.3,2281.6,0.21932]
[1770116162853,2.46054724,2282.3,2281.7,2.59109188]
[1770116163454,2.46516223,2282.3,2281.7,2.59109188]
[1770116164153,1.25611819,2282.3,2281.7,2.59109188]
[1770116164652,0.00461499,2282.3,2281.7,2.59109188]
[1770116167458,2.45560989,2282.5,2281.7,2.59109188]
[1770116167654,1.2515032,2282.5,2281.9,2.37178188]
[1770116167856,2.45560989,2282.7,2281.9,2.37178188]
[1770116168055,1.2515032,2282.5,2281.9,2.37178188]
[1770116168452,1.2515032,2282.4,2281.9,2.37178188]
[1770116168858,1.2515032,2282.3,2281.9,2.37178188]
[1770116169154,2.45560989,2282.3,2281.6,40.8]
[1770116169359,1.2515032,2281.8,2281.2,0.21936]
[1770116169556,2.45560989,2281.9,2281.2,0.21936]
[1770116169755,3.70711309,2281.6,2281.0,47.34138]
[1770116169957,2.45560989,2281.9,2281.1,2.59115188]
[1770116170359,3.70711309,2281.8,2281.1,2.59115188]
[1770116170556,2.45560989,2281.8,2281.1,0.21937]
[1770116170854,2.45560989,2281.4,2281.1,0.21937]
[1770116171056,2.45560989,2281.4,2281.0,6.322]
[1770116171057,2.45560989,2281.4,2280.7,2.37178188]
[1770116171261,3.70711309,2281.4,2280.7,43.17178188]
[1770116171459,3.70711309,2281.4,2281.1,0.21937]
[1770116171960,1.2515032,2281.2,2281.1,0.21937]
[1770116172160,1.2515032,2281.2,2280.8,2.37178188]
[1770116172360,2.45560989,2281.4,2280.8,2.37178188]
[1770116172562,2.45560989,2282.1,2280.8,2.37178188]
[1770116172861,2.45560989,2281.7,2280.8,2.37178188]
[1770116173160,2.45560989,2281.7,2281.1,0.21937]
[1770116173361,1.2515032,2281.4,2281.1,0.21937]
[1770116173759,1.2515032,2281.3,2281.1,0.21937]
[1770116173961,1.2515032,2281.5,2281.1,0.21937]
[1770116174260,3.70711309,2281.5,2281.1,0.21937]
[1770116174460,1.2515032,2281.4,2281.1,0.21937]
[1770116174659,2.45560989,2281.5,2281.1,0.21937]
[1770116174660,1.2515032,2281.3,2281.1,0.21937]
[1770116174861,1.2515032,2281.4,2280.8,2.37178188]
[1770116175061,2.45560989,2281.5,2280.8,2.37178188]
[1770116175260,2.45560989,2281.5,2281.1,0.21937]
[1770116175461,1.2515032,2281.4,2281.1,0.21937]
[1770116175759,1.2515032,2281.3,2281.1,0.108199]
[1770116175958,1.2515032,2281.4,2281.1,0.108199]
[1770116177060,1.2515032,2281.3,2281.1,0.108199]
[1770116177261,1.2515032,2281.4,2281.1,0.108199]
[1770116177455,2.45560989,2281.5,2281.1,0.108199]
[1770116177656,1.2515032,2281.4,2281.1,0.108199]
[1770116177861,1.2515032,2281.3,2281.1,0.108199]
[1770116178059,1.2515032,2281.4,2281.1,0.108199]
[1770116178465,1.2515032,2281.3,2281.1,0.108199]
[1770116178762,1.2515032,2281.4,2281.1,0.108199]
[1770116179162,1.2515032,2281.3,2281.1,0.108199]
[1770116179462,51.23917298,2282.2,2281.1,0.108199]
[1770116179463,1.2515032,2281.4,2281.1,0.108199]
[1770116179762,3.70711309,2281.7,2281.1,0.108199]
[1770116179966,1.2515032,2281.5,2281.1,0.108199]
[1770116180459,2.45560989,2281.7,2281.1,2.61944314]
[1770116180666,2.33227093,2282.1,2281.2,2.73060414]
[1770116180966,2.33227093,2282.0,2281.2,2.73060414]
[1770116181264,2.33227093,2281.9,2281.2,2.73060414]
[1770116181566,1.2515032,2281.7,2281.2,0.21936]
[1770116181759,2.33227093,2281.8,2281.2,0.21936]
[1770116181964,2.79973988,2282.3,2281.2,0.21936]
[1770116181965,2.33227093,2281.5,2281.2,0.21936]
[1770116182464,1.2515032,2281.4,2281.2,0.21936]
[1770116183566,1.2515032,2281.3,2281.2,0.21936]
[1770116183864,1.2515032,2281.4,2281.2,0.21936]
[1770116184266,1.2515032,2281.3,2281.2,0.21936]
[1770116184565,1.2515032,2281.4,2281.2,0.21936]
[1770116185065,1.2515032,2281.3,2281.2,0.21936]
[1770116185264,1.2515032,2281.4,2281.2,0.21936]
[1770116185464,1.2515032,2281.5,2281.2,0.21936]
[1770116186369,1.2515032,2281.4,2281.2,0.21936]
[1770116186564,1.2515032,2281.5,2281.2,0.21936]
[1770116187067,1.2515032,2281.4,2281.2,0.21936]
[1770116187266,1.2515032,2281.5,2281.2,0.21936]
[1770116188171,1.2515032,2281.4,2281.2,0.21936]
[1770116188471,1.2515032,2281.5,2281.2,0.21936]
[1770116189171,1.2515032,2281.4,2281.2,0.21936]
[1770116189371,1.2515032,2281.5,2281.2,0.21936]
[1770116189572,2.33227093,2281.6,2281.2,0.21936]
[1770116189769,1.2515032,2281.5,2281.2,0.21936]
[1770116190470,1.2515032,2281.4,2281.2,0.21936]
[1770116191873,2.33227093,2281.5,2281.2,0.21936]
[1770116192073,1.2515032,2281.4,2281.2,0.21936]
[1770116193274,1.2515032,2281.3,2281.2,0.21936]
[1770116193476,2.33227093,2281.5,2281.2,0.21936]
[1770116194276,2.33227093,2281.5,2281.1,6.388]
[1770116195177,2.33227093,2281.5,2281.2,0.21936]
[1770116196478,2.33227093,2281.7,2281.2,2.73060414]
[1770116196676,2.33227093,2281.7,2281.2,0.21936]
[1770116209486,4.93154295,2282.1,2281.5,1.36684993]
[1770116209687,2.33227093,2282.0,2281.6,0.21932]
[1770116211487,2.37164113,2282.2,2281.6,2.55409716]
[1770116211687,2.37164113,2282.2,2281.6,0.21932]
[1770116218195,2.37164113,2282.2,2281.3,3.72342058]
[1770116218397,2.37164113,2282.2,2281.3,1.36653759]
[1770116219195,2.37164113,2282.2,2281.6,0.21932]
[1770116220595,2.56115974,2282.0,2281.1,0.21936]
[1770116220792,2.56115974,2281.8,2280.8,5.42120776]
[1770116220995,2.56115974,2281.8,2280.9,1.58592759]
[1770116222601,2.56115974,2281.8,2281.0,0.21938]
[1770116222893,2.56115974,2281.8,2281.1,3.94279058]
[1770116223096,2.56115974,2281.8,2281.2,2.35688299]
[1770116223598,45.63917298,2282.4,2281.7,1.36653759]
[1770116223899,3.74330012,2282.3,2281.7,1.36653759]
[1770116224098,7.181,2282.4,2281.6,2.35688299]
[1770116224293,3.74331269,2282.3,2281.5,1.36653759]
[1770116224494,7.181,2282.4,2281.5,3.72342058]
[1770116224694,3.74325496,2282.3,2281.5,3.72342058]
[1770116224998,3.743215,2282.2,2281.4,0.21934]
[1770116225297,7.181,2282.4,2281.4,0.21934]
[1770116225499,3.74319337,2282.3,2281.4,0.21934]
[1770116225695,0.57863335,2282.1,2281.4,0.21934]
[1770116226799,0.57863335,2282.1,2281.5,0.21933]
[1770116227097,0.53797005,2282.3,2281.7,0.21931]
[1770116230902,0.53797005,2282.3,2281.3,5.30324215]
[1770116231201,0.53731479,2282.2,2281.2,0.21936]
[1770116233502,1.36653759,2281.6,2280.8,4.15610456]
[1770116233698,0.54426369,2281.3,2280.6,2.35688299]
[1770116234999,0.46214978,2281.5,2280.8,1.36653759]
[1770116235205,0.46214978,2281.8,2281.0,3.72342058]
[1770116236105,0.46286956,2282.0,2281.2,1.36653759]
[1770116236406,0.46286956,2282.0,2281.1,2.35688299]
[1770116237304,0.46286956,2282.0,2281.0,2.57626299]
[1770116240203,0.46989749,2281.9,2280.8,2.3458278]
[1770116243110,0.46989749,2281.9,2280.8,2.5652278]
[1770116243411,0.46615175,2282.5,2281.5,2.3458278]
[1770116243612,0.46615175,2282.5,2281.7,2.3458278]
[1770116244608,0.00385099,2282.5,2281.9,2.3458278]
[1770116244808,0.00385099,2282.5,2281.9,2.5651178]
[1770116245208,0.49216758,2283.0,2281.9,2.5651178]
[1770116245410,0.49216758,2283.0,2282.0,2.3458278]
[1770116246109,0.49691957,2283.0,2282.0,2.3458278]
[1770116247213,0.35351117,2282.6,2281.5,6.32666312]
[1770116247414,0.35351117,2282.5,2281.5,2.38995856]
[1770116251209,38.45817298,2282.9,2281.4,41.01934]
[1770116251210,38.45817298,2282.9,2281.8,2.39510365]
[1770116251409,38.80614597,2283.0,2281.8,2.39510365]
[1770116251612,0.343221,2282.9,2281.8,2.39510365]
[1770116254713,0.00475199,2283.0,2281.8,2.61441365]
[1770116255415,0.33470692,2283.0,2281.8,2.61441365]
[1770116255910,0.30557314,2282.9,2281.8,2.39510365]
[1770116256115,0.30557314,2282.8,2281.8,2.39510365]
[1770116256711,0.30557314,2282.6,2281.8,2.39510365]
[1770116257118,4.0398789,2282.5,2281.8,1.17310366]
[1770116257318,0.30557314,2282.5,2281.8,1.17310366]
[1770116261219,0.30557314,2282.5,2281.5,2.3458278]
[1770116261421,1.54313052,2282.3,2281.5,2.3458278]
[1770116262619,7.40524,2282.5,2281.5,2.3458278]
[1770116262820,3.77507251,2282.4,2281.5,2.3458278]
[1770116263019,7.40524,2282.5,2281.5,2.3458278]
[1770116263220,3.77514667,2282.4,2281.5,2.3458278]
[1770116263419,3.77514667,2282.3,2281.5,2.3458278]
[1770116263621,8.94042293,2282.5,2281.5,2.3458278]
[1770116263820,3.77527653,2282.4,2281.5,2.3458278]
[1770116264019,3.77527653,2282.4,2281.4,1.36666505]
[1770116264020,7.186,2282.5,2281.7,2.3458278]
[1770116264220,3.77540634,2282.4,2281.7,2.3458278]
[1770116264421,45.64717298,2282.6,2281.7,2.3458278]
[1770116264621,3.77695856,2282.5,2281.7,2.3458278]
[1770116264822,3.77695856,2282.4,2281.7,2.3458278]
[1770116265124,8.68602435,2282.6,2281.7,2.3458278]
[1770116265326,3.77830956,2282.5,2281.7,2.3458278]
[1770116265623,3.77830956,2282.4,2281.7,2.3458278]
[1770116265824,8.68602435,2282.6,2281.7,2.3458278]
[1770116266119,3.77830822,2282.5,2281.7,2.3458278]
[1770116266323,3.77830822,2282.4,2281.7,2.3458278]
[1770116266524,8.68413306,2282.6,2281.7,2.3458278]
[1770116266724,3.77854747,2282.5,2281.7,2.3458278]
[1770116266926,3.77854747,2282.4,2281.7,2.3458278]
[1770116267225,8.68413306,2282.6,2281.7,2.3458278]
[1770116267524,3.77871728,2282.5,2281.7,2.3458278]
[1770116267724,3.77871728,2282.4,2281.7,2.3458278]
[1770116267925,8.68413306,2282.6,2281.7,2.3458278]
[1770116268224,3.77825014,2282.5,2281.7,2.3458278]
[1770116268424,3.77825014,2282.4,2281.7,2.3458278]
[1770116268626,8.68413306,2282.6,2281.7,2.3458278]
[1770116268830,3.7786004,2282.5,2281.7,2.3458278]
[1770116269125,3.7786004,2282.4,2281.7,2.3458278]
[1770116269321,8.68413306,2282.6,2281.7,2.3458278]
[1770116269625,3.77895864,2282.5,2281.7,2.3458278]
[1770116269825,3.77895864,2282.4,2281.7,2.3458278]
[1770116270126,11.27307208,2282.6,2281.7,2.3458278]
[1770116270326,3.77968384,2282.5,2281.7,2.3458278]
[1770116270525,3.77968384,2282.4,2281.7,2.3458278]
[1770116270729,11.27307208,2282.6,2281.7,2.3458278]
[1770116271025,3.77968432,2282.5,2281.7,2.3458278]
[1770116271224,3.77968432,2282.4,2281.7,2.3458278]
[1770116271428,11.27307208,2282.6,2281.7,2.3458278]
[1770116271726,3.78122254,2282.5,2281.7,2.3458278]
[1770116271928,3.78122254,2282.4,2281.7,2.3458278]
[1770116272127,11.27307208,2282.6,2281.7,2.3458278]
[1770116272323,6.37202428,2282.5,2281.7,2.3458278]
[1770116272525,3.78308526,2282.4,2281.7,2.3458278]
[1770116272828,3.78308526,2282.3,2281.7,2.3458278]
[1770116273027,2.58893902,2282.5,2281.7,2.3458278]
[1770116273328,3.78310426,2282.4,2281.7,2.3458278]
[1770116273521,3.78310426,2282.3,2281.7,2.3458278]
[1770116273723,2.58893902,2282.5,2281.7,2.3458278]
[1770116273929,3.78802588,2282.4,2281.7,2.3458278]
[1770116274122,3.78802588,2282.3,2281.7,2.3458278]
[1770116274325,4.10205975,2282.5,2281.7,2.3458278]
[1770116274627,1.51312073,2282.3,2281.4,2.34185197]
[1770116274822,3.7882101,2282.2,2281.4,2.34185197]
[1770116275024,1.51312073,2282.3,2281.4,2.34185197]
[1770116275224,3.78797118,2282.2,2281.4,2.34185197]
[1770116275428,4.10205975,2282.4,2281.4,2.34185197]
[1770116275626,3.78860913,2282.3,2281.4,2.34185197]
[1770116275825,3.78860913,2282.2,2281.4,2.34185197]
[1770116276021,4.10205975,2282.4,2281.4,2.34185197]
[1770116276320,3.788121,2282.3,2281.4,2.34185197]
[1770116276521,3.788121,2282.2,2281.4,2.34185197]
[1770116276725,3.788121,2282.1,2281.4,2.34185197]
[1770116276921,2.58893902,2282.4,2281.4,2.34185197]
[1770116277125,3.78869506,2282.3,2281.4,2.34185197]
[1770116277329,3.78869506,2282.2,2281.4,2.34185197]
[1770116277525,2.58893902,2282.4,2281.4,2.34185197]
[1770116277725,3.78927699,2282.3,2281.4,2.34185197]
[1770116278024,3.78927699,2282.2,2281.4,2.34185197]
[1770116278224,2.58893902,2282.4,2281.4,2.34185197]
[1770116278424,3.78917888,2282.3,2281.4,2.34185197]
[1770116278620,3.78917888,2282.2,2281.4,2.34185197]
[1770116278825,2.58893902,2282.4,2281.4,2.34185197]